Cogmind - Beta 16 @@@ ROGUE MODE // 2025.12.16 @ 20:53:04 Player: AngelSpirit Result: Destroyed by 3Z-5DD(R) with Subdweller Laser Performance ------------- Evolutions (0) 0 Regions Visited (2) 400 Robots Destroyed (29) 145 Value Destroyed (680) 680 Prototype IDs (0) 0 Alien Tech Used (0) 0 Bonus (0) 0 TOTAL SCORE: 1225 Bonus ------- None Cogmind --------- Core Integrity 0/250 Matter 280/300 Energy 248/250 System Corruption 0% Temperature Cool (6) Movement Rolling (135) Ox3 Location -10/Subcaves Parts ------- > --- POWER (1) -------- Ion Engine > --- PROPULSION (2) --- Wheel Compact Wheel > --- UTILITY (2) ------ Disposable Heat Sink Huge Storage Unit > --- WEAPON (2) ------- Subdweller Machine Gun Subdweller Machine Gun > --- INVENTORY (25) --- Wheel Wheel Compact Wheel Compact Wheel Subdweller Monowheel Disposable Heat Sink Disposable Heat Sink Disposable Heat Sink Heavy EM Pulse Gun Heavy EM Pulse Gun Peak State ------------ > --- POWER ------------ Ion Engine > --- PROPULSION ------- Wheel Compact Wheel > --- UTILITY ---------- Disposable Heat Sink High-capacity Storage Unit > --- WEAPON ----------- Heavy EM Pulse Gun Heavy EM Pulse Gun > --- INVENTORY -------- Ion Engine Wheel Compact Wheel Disposable Heat Sink Disposable Heat Sink Disposable Heat Sink Medium Laser [Rating: 11] Favorites ----------- Power Ion Engine Engine Ion Engine Propulsion Compact Wheel Wheel Compact Wheel Utility Disposable Heat Sink Device Disposable Heat Sink Storage High-capacity Storage Unit Weapon Heavy EM Pulse Gun Energy Gun Heavy EM Pulse Gun Ballistic Gun Subdweller Machine Gun Build | -11 -10 -10 ------- Run | Yrd Mat Sub Slots Evolved . | . . . Power . | . . . Propulsion . | . . . Utility . | . . . Weapon . | . . . Parts Attached 18 | 6 9 3 Power 3 | 1 1 1 Engine 3 | 1 1 1 Core . | . . . Reactor . | . . . Propulsion 5 | 2 3 . Treads . | . . . Leg . | . . . Wheel 5 | 2 3 . Hover . | . . . Flight . | . . . Utility 4 | 1 3 . Device 1 | . 1 . Storage 3 | 1 2 . Processor . | . . . Hackware . | . . . Protection . | . . . Artifact . | . . . Weapon 6 | 2 2 2 Energy Gun 3 | 1 2 . Energy Cannon . | . . . Ballistic Gun 3 | 1 . 2 Ballistic Cannon . | . . . Launcher . | . . . Special Weapon . | . . . Impact Weapon . | . . . Slashing Weapon . | . . . Piercing Weapon . | . . . Special Melee Weapon . | . . . Unidentified Prototypes . | . . . Parts Lost 5 | . 4 1 Power 1 | . . 1 Propulsion 3 | . 3 . Utility . | . . . Weapon 1 | . 1 . Highest Loss Streak 1 | . 1 1 To Critical Strikes . | . . . Average Backups 5 | . 5 9 Power . | . . . Propulsion 2 | . 1 4 Utility 1 | . 1 3 Weapon 1 | . 1 2 Tool/Special . | . . . Unused Backups 13 | . 3 10 Power 1 | . 1 . Propulsion 5 | . . 5 Utility 3 | . . 3 Weapon 4 | . 2 2 Tool/Special . | . . . Average Slot Usage (%) 93 | . 92 99 Engine 13 | . 14 13 Wheel 26 | . 26 28 Device 9 | . 8 14 Storage 14 | . 14 14 Energy Gun 18 | . 22 6 Ballistic Gun 9 | . 5 20 Peak Build Rating 11 | 6 11 11 Average Rating 8 | 4 8 10 On Entrance 5 | . 6 11 Avg Prop Armor Cover (%) . | . . . Naked Turns . | . . . Heaviest Build 94 | 12 92 94 Greatest Support 32 | 32 32 26 Greatest Overweight (x) 5 | . 5 3 Average Overweight (x) 1 | . 1 3 Largest Inventory Capacity 25 | 8 25 25 Average Capacity 21 | 7 20 25 Most Carried 11 | . 10 11 Average Carried 6 | . 5 10 Final Capacity 25 | 8 25 25 Final Carried 10 | . 10 10 Class Distribution -------------------- 100% | Mutant Dominant Class ---------------- Mutant | -10/Materials Mutant | -10/Subcaves Resources | -11 -10 -10 ----------- Run | Yrd Mat Sub Matter Collected 547 | 260 246 41 Remotely . | . . . Salvage Created 1000 | . 843 157 Parts 62 | . 53 9 Haulers Intercepted . | . . . Recyclers Shooed 4 | . 4 . Parts Field Recycled . | . . . Retrieved Matter . | . . . Parts Self-Destructed 3 | . . 3 Prevented . | . . . Parts Restored . | . . . Kills | -11 -10 -10 ------- Run | Yrd Mat Sub Combat Hostiles Destroyed 21 | . 17 4 Guns 21 | . 17 4 Classes Destroyed 8 | . 7 1 Worker 1 | . 1 . Builder 1 | . 1 . Tunneler 1 | . 1 . Recycler 2 | . 2 . Watcher 3 | . 3 . Swarmer 6 | . 6 . Grunt 11 | . 11 . Subdweller 4 | . . 4 Best Kill Streak 4 | . 4 2 Combat Bots Only 3 | . 3 2 Max Kills in Single Turn 1 | . 1 1 Gunslinging . | . . . Exploded . | . . . Melee . | . . . Uniques/NPCs Destroyed . | . . . Combat | -11 -10 -10 -------- Run | Yrd Mat Sub Hostile Shots Fired 92 | . 78 14 Missed 27 | . 23 4 Hits 65 | . 55 10 Projectile 65 | . 55 10 Critical Strikes 1 | . 1 . Damage Taken 792 | . 554 238 Core 252 | . 165 87 Absorbed by Shields . | . . . Core Remaining (%) 100 | 100 . . Volleys Fired 88 | . 79 9 Largest 2 | . 2 2 Hottest 90 | . 90 60 Shots Fired 175 | . 157 18 Gun 175 | . 157 18 Cannon . | . . . Launcher . | . . . Special . | . . . Kinetic 75 | . 57 18 Thermal 56 | . 56 . Explosive . | . . . Electromagnetic 44 | . 44 . Robot Hit Streak 11 | . 11 6 Robot Miss Streak 4 | . 4 2 Penetration Max . | . . . Secondary Targets 1 | . . 1 Max Gunslinging Chain 1 | . . 1 Shots Hit Robots 106 | . 93 13 Core Hits 43 | . 36 7 Critical Kills . | . . . Critical Parts Destroyed 1 | . . 1 Critical Strikes 6 | . 5 1 Burn 5 | . 5 . Destroy 1 | . . 1 Melee Attacks . | . . . Impact . | . . . Slashing . | . . . Piercing . | . . . Sneak Attacks . | . . . Combat Hostiles . | . . . Follow-up Attacks . | . . . Damage Inflicted 1534 | . 1259 275 Guns 1534 | . 1259 275 Cannons . | . . . Explosions . | . . . Melee . | . . . Ramming . | . . . Kinetic 767 | . 492 275 Thermal 464 | . 464 . Explosive . | . . . Electromagnetic 303 | . 303 . Impact . | . . . Slashing . | . . . Piercing . | . . . Highest Corruption . | . . . Average Corruption . | . . . Corruption Purged . | . . . Corruption Blocked . | . . . Overload Shots . | . . . Overflow Damage . | . . . Projectiles . | . . . Explosions . | . . . Melee . | . . . Knockbacks . | . . . Impact . | . . . Kinetic . | . . . Secondary . | . . . Self-Inflicted Damage . | . . . Shots . | . . . Rammed . | . . . Targets Rammed . | . . . Kicked . | . . . Crushed . | . . . Highest Temperature 273 | . 273 . Average Temperature 68 | . 68 . Received Heat Transfer 258 | . 222 36 Siege Activations . | . . . Martial Activations . | . . . Shielding Activations . | . . . Robots Disrupted . | . . . Combat Hostiles . | . . . Robots Corrupted . | . . . Combat Hostiles . | . . . Parts Fried 2 | . 2 . Impact Corruptions . | . . . Robots Melted . | . . . Combat Hostiles . | . . . Parts Melted 5 | . 5 . Heat Transferred 1739 | . 1739 . Parts Sabotaged . | . . . Parts Stolen . | . . . Parts Stripped . | . . . Power Chain Reactions . | . . . Alert | -11 -10 -10 ------- Run | Yrd Mat Sub Maximum Alert Level 1 | . 1 . Low Security (%) 94 | 100 94 . Level 1 5 | . 5 . Level 2 . | . . . Level 3 . | . . . Level 4 . | . . . Level 5 . | . . . High Security . | . . . Max Security . | . . . Peak Influence 214 | . 214 . Initial . | . . . Average 96 | . 100 . Influence Increases 543 | . 543 . Destroy 0b10 Robot/C 340 | . 340 . Destroy 0b10 Robot/NC 40 | . 40 . Destroy Leader 66 | . 66 . Successful Hack 37 | . 37 . Lose Combat Pursuer 60 | . 60 . Influence Decreases 543 | . 440 103 Entered New Map 51 | . . 51 Time Decay 450 | . 400 50 Lost Part 42 | . 40 2 Squads Dispatched 3 | . 3 . Investigation 2 | . 2 . Extermination . | . . . Reinforcement 1 | . 1 . Assault . | . . . Garrison . | . . . Intercept . | . . . Searches Triggered . | . . . Construction Impeded . | . . . Haulers Reinforced . | . . . Active Scanning Responses . | . . . Cargo Convoy Interrupts . | . . . Stealth | -11 -10 -10 --------- Run | Yrd Mat Sub Distress Signals . | . . . Communications Jammed . | . . . Distress Signals . | . . . Times Spotted 35 | . 30 5 Peak Tracking Total 4 | . 4 3 Tactical Retreats 2 | . 2 . Traps | -11 -10 -10 ------- Run | Yrd Mat Sub Traps Triggered 3 | . 2 1 Indirectly . | . . . Trap Hack Attempts . | . . . Triggered . | . . . Disarmed 6 | . 6 . Reprogrammed . | . . . Reused 1 | . . 1 Traps Extracted . | . . . Installed 1 | . . 1 Triggered . | . . . Most Traps Carried 1 | . . 1 Machines | -11 -10 -10 ---------- Run | Yrd Mat Sub Machines Disabled . | . . . Max in Single Turn . | . . . Machines Repaired . | . . . Machines Dismantled . | . . . Machines Sabotaged . | . . . Overloaded Fab Kills . | . . . Hacking | -11 -10 -10 --------- Run | Yrd Mat Sub Machines Accessed 7 | . 7 . Terminals 6 | . 6 . Fabricators . | . . . Repair Stations . | . . . Recycling Units 1 | . 1 . Scanalyzers . | . . . Garrison Access . | . . . Total Hacks 16 | . 16 . Successful 10 | . 10 . Failed 6 | . 6 . Catastrophic . | . . . Database Lockouts . | . . . Manual 6 | . 6 . Terminals 14 | . 14 . Fabricators . | . . . Repair Stations . | . . . Recycling Units 2 | . 2 . Scanalyzers . | . . . Garrison Access . | . . . Terminal Hacks 7 | . 7 . Robot Analysis 1 | . 1 . Locate Traps 2 | . 2 . Disarm Traps 1 | . 1 . Registered Components 1 | . 1 . Zone Layout 2 | . 2 . Fabricator Hacks . | . . . Repair Station Hacks . | . . . Recycling Unit Hacks 1 | . 1 . Retrieve Components 1 | . 1 . Scanalyzer . | . . . Garrison Access Hacks . | . . . Unauthorized Hacks 2 | . 2 . Terminals 2 | . 2 . Botnet 2 | . 2 . Fabricators . | . . . Repair Stations . | . . . Recycling Units . | . . . Scanalyzers . | . . . Garrison Access . | . . . Data Cores Recovered . | . . . Used . | . . . Hacking Detections 7 | . 7 . Full Trace Events . | . . . Feedback Events . | . . . Feedback Blocked . | . . . Robot Schematics Acquired . | . . . Robots Built . | . . . Authchips . | . . . Time . | . . . Total Robot Build Rating . | . . . Part Schematics Acquired . | . . . Parts Built . | . . . Authchips . | . . . Time . | . . . Total Part Build Rating . | . . . Part Studies Acquired . | . . . Parts Repaired . | . . . Time . | . . . Parts Recycled . | . . . Recycled Matter . | . . . Retrieved Matter . | . . . Retrieved Components . | . . . Parts Scanalyzed . | . . . Part Schematics Acquired . | . . . Parts Damaged . | . . . Bothacking | -11 -10 -10 ------------ Run | Yrd Mat Sub Used RIF Installer . | . . . Robots Hacked . | . . . Non-combat . | . . . Combat . | . . . Robot Hacks Applied . | . . . Relay Couplers Released . | . . . Fabnet Peak Effective % . | . . . Robots Rewired . | . . . Allies Hacked . | . . . Hacks Repelled . | . . . Allies | -11 -10 -10 -------- Run | Yrd Mat Sub Total Allies . | . . . Largest Group . | . . . Highest-Rated Group . | . . . Highest-Rated Ally . | . . . Total Orders . | . . . Ally Attacks . | . . . Total Damage . | . . . Kills . | . . . Allies Corrupted . | . . . Allies Melted . | . . . Intel | -11 -10 -10 ------- Run | Yrd Mat Sub Active Infowar (turns) . | . . . Robot Analysis Total 1 | . 1 . Derelict Logs Recovered . | . . . Drone Launches . | . . . Drone Recoveries . | . . . Exploration | -11 -10 -10 ------------- Run | Yrd Mat Sub Turns Passed 1463 | 45 1098 320 Spaces Moved 898 | 38 667 193 Core 2 | 2 . . Treads . | . . . Legs . | . . . Wheels 896 | 36 667 193 Hover . | . . . Flight . | . . . Fastest Speed 50 | 50 100 135 Average Speed 119 | 97 116 135 Slowest Speed 155 | 100 155 135 Overloaded Moves . | . . . Propulsion Burnouts . | . . . Robots Hopped . | . . . Potential Cave-ins . | . . . Cave-ins Triggered . | . . . Exploration Rate (%) 36 | 3 87 19 Regions Visited 2 Branch Regions 1 Pre-discovered Areas . | . . . Known Exits Taken . | . . . Unknown Exits Taken 2 | 1 1 . Scrap Searched . | . . . Spaces Dug . | . . . Terrain Destroyed . | . . . Melee . | . . . Projectile . | . . . AOE . | . . . Terrain Rammed . | . . . Walls Destroyed . | . . . Machines Disabled . | . . . Actions | -11 -10 -10 --------- Run | Yrd Mat Sub Total 1111 | 43 831 237 Wait 82 | . 56 26 Move 896 | 37 666 193 Hop . | . . . Pick Up 16 | . 14 2 Fast Attach 14 | 6 6 2 Attach 2 | . 1 1 Detach . | . . . Swap 2 | . 2 . Drop 10 | . 7 3 Fire 88 | . 79 9 Melee . | . . . Ram . | . . . Kick . | . . . Crush . | . . . Escape Stasis . | . . . Rewire . | . . . Trap 1 | . . 1 Miscellaneous . | . . . Route ------- -11/Scrapyard -10/Materials (discovered 5 exits: [*Mat x2] / [*Min x2] / [*Sub]) -10/Subcaves (discovered 2 exits: [*Mat] / [*Scr]) History --------- Turn | Location | Event 5 | -11/Scrapyard | Discovered new exit (range 16) 46 | -11/Scrapyard | Entered Materials 263 | -10/Materials | Discovered new exit (range 10) 300 | -10/Materials | Build established: Mutant 417 | -10/Materials | Discovered new exit (range 7) 560 | -10/Materials | Discovered new exit (range 5) 628 | -10/Materials | Core integrity fell below 50% 886 | -10/Materials | Discovered new exit (range 10) 1123 | -10/Materials | Discovered new exit (range 10) 1144 | -10/Materials | Entered Subcaves 1144 | -10/Subcaves | Discovered new exit (range 10) 1145 | -10/Subcaves | Approached by a straggling Scientist 1152 | -10/Subcaves | Shifting Twisted Machinery released Flamer 1210 | -10/Subcaves | Shifting Twisted Machinery released Sub. Machine Gun 1211 | -10/Subcaves | Shifting Twisted Machinery released Sub. Machine Gun 1241 | -10/Subcaves | Core integrity fell below 20% 1334 | -10/Subcaves | Scientist uncovered a shortcut to Scraptown 1424 | -10/Subcaves | A Subdweller sparked back to life 1424 | -10/Subcaves | A Subdweller sparked back to life 1424 | -10/Subcaves | A Subdweller sparked back to life 1464 | -10/Subcaves | Destroyed by 3Z-5DD(R) with Subdweller Laser Last Messages --------------- 01331_ Spikes shoot up from the floor. 01331_ R9-3J2(c) suffers critical hit (Impale). 01334_ R9-3J2(c): "Hah, right again, there it is!" 01340_ R9-3J2(c) exits level. 01345_ Triggered Piercing Trap. 01345_ Spikes shoot up from the floor. 01346_ Subatomizers dissect the Sub. Monowheel. 01424_ OA-3PU(R) creaks and sparks as it begins to move. 01424_ DV-KED(R) creaks and sparks as it begins to move. 01424_ 3Z-5DD(R) creaks and sparks as it begins to move. 01445_ Dropped Piercing Trap. 01446_ Installed Piercing Trap. 01450_ DV-KED(R) triggered Piercing Trap. 01450_ Spikes shoot up from the floor. 01451_ DV-KED(R) destroyed. 01458_ OA-3PU(R) destroyed. Map ----- +----------------------------------------------------+ | ?????????????????????????????????????????????????? | | ?????????????????????????????????????????????????? | | ?????????????????????????????????????????????????? | | ?????????????????????????????????????????????????? | | ?????????????????????????????????????????????????? | | ?? ?????????????????????????????????????????????? | | ## ????????????????????????????????????????????? | | # ????????????????????????????????????????????? | | # ?????????????????????????????????#########??? | | # ????????????????????????????????## #??? | | ???????????????????????????????## ##?? | | #?###?????????????????????????## #?? | | # ## ##????????????????????????# #????? | | ?# #???????????????????????## #????? | | ## ##????###???????????????# ##?### | | # #???## ##??????????????# ## | | #??## #???????????#### ## | | ?# #### #???????????## ### | | ??# ## #######?#???# #?### | | ??# # ## #??# % ##???# | | ??# #???## ##???##!&## | | ?## #### # # #????## #?#### & ## | | ?# #??#### # ##????#% ##### # & | | ?# ## #????# # #????# ##?## | | ?# ### #????#]=##& ###### #### | | ?# ### ####?##=R!%@ ####^^ ^^# # | | ?## #?# #??###*# % ### #### ### | | ??# ### ##???### # ^ ## # = ## | | ??# ## #?????# > ^ ## | | ?## ## #?#% ## # ### ## # | | ?# " # #############?######## | | & #???????????????????# " | | " #??????????????????# """" | | " & ### ?????????????????# """"# | | # " #?? ????????????????# "### | | " #?? ##### ????????????????## ##?? | | ? #??????????????????????#####??? | | ?#?????????????????????????????? | | ## #??????????????????????????????? | | ?# ## #??????????????????????????????? | | #?# ##?##??????????????????????????????? | | ##?? ##??????????????????????????????????? | | ????# #???????????????????????????????????? | | ????##########???????????????????????????????????? | | ?????????????????????????????????????????????????? | | ?????????????????????????????????????????????????? | | ?????????????????????????????????????????????????? | | ?????????????????????????????????????????????????? | | ?????????????????????????????????????????????????? | | ?????????????????????????????????????????????????? | +----------------------------------------------------+ Best States ------------- Heat Dissipation 25 Coolant Potential 50 Energy Generation 10 Energy Capacity 250 Matter Stores 300 Matter Capacity 300 Sight Range 16 Terrain Scan Density 10 Evasion (%) 40 Item Schematics ----------------- None Robot Schematics ------------------ None Fabricated ------------ Nothing Repaired ---------- Nothing Studied --------- None Alien Tech Used ----------------- None Achievements -------------- None Challenges ------------ None Game ------ Seed RecoilGreatMaul Manual? 0 Play Time 00:10:26 Cumulative 300.6 hours Start 2025.12.16 @ 20:44:24 End 2025.12.16 @ 20:53:04 Sessions 1 Manual Loads 0 Difficulty Rogue Special Mode None Game No. 110 Rogue 110 Adventurer 0 Explorer 0 Win Type - Total 2 Types 1/0/0/0/0/0/0/0/0/1 Lore% 74 Gallery% 68 Achievement% 58 Wizard Run 0 Options --------- Layout 1 ASCII 0 Keyboard 0 Movement Mouse Keybinds 0 Fullscreen 2 Font 32/SmallcapsGlow Map View 50x35 Zoom Use 0% Tactical HUD 1 Map Filters NONE Filters NONE Steam 1 RUN: b4e9cf82-a88a-4c95-b811-d117d1a48102